[Event "*** Titled Tuesday Blitz"]
[Site "Chess.com"]
[Date "2020.03.03"]
[Round "4"]
[White "David_Paravyan"]
[Black "mitrabhaa"]
[Result "1-0"]
[WhiteElo "2833"]
[BlackElo "2636"]
[TimeControl "180+1"]
[EndTime "9:43:38 PST"]
[Termination "David_Paravyan won by checkmate"]

1. d4 {[%clk 0:03:00.9]} 1... Nf6 {[%clk 0:02:58.2]} 2. c4 {[%clk 0:03:00.8]}
2... e6 {[%clk 0:02:57.5]} 3. g3 {[%clk 0:03:00.1]} 3... c5 {[%clk 0:02:53.3]}
4. d5 {[%clk 0:02:51.7]} 4... exd5 {[%clk 0:02:50.7]} 5. cxd5 {[%clk 0:02:52.6]}
5... d6 {[%clk 0:02:49.9]} 6. Nc3 {[%clk 0:02:52.6]} 6... g6 {[%clk 0:02:49.7]}
7. Nf3 {[%clk 0:02:53]} 7... Bg7 {[%clk 0:02:49.4]} 8. Bg2 {[%clk 0:02:53.5]}
8... O-O {[%clk 0:02:50]} 9. O-O {[%clk 0:02:53.6]} 9... Re8 {[%clk 0:02:50.6]}
10. Re1 {[%clk 0:02:49.1]} 10... a6 {[%clk 0:02:49.7]} 11. a4 {[%clk 0:02:48.2]}
11... Ne4 {[%clk 0:02:49]} 12. Nxe4 {[%clk 0:02:47]} 12... Rxe4 {[%clk
0:02:48.5]} 13. Bg5 {[%clk 0:02:43.2]} 13... Qe8 {[%clk 0:02:44.7]} 14. Bf4
{[%clk 0:02:36.2]} 14... Qe7 {[%clk 0:02:40]} 15. Ra3 {[%clk 0:02:07.5]} 15...
Nd7 {[%clk 0:02:31.5]} 16. Qd2 {[%clk 0:01:49.9]} 16... Nb6 {[%clk 0:02:23.1]}
17. Rb3 {[%clk 0:01:06.9]} 17... Nc4 {[%clk 0:02:00.4]} 18. Qc1 {[%clk
0:00:55.4]} 18... Na5 {[%clk 0:01:55.3]} 19. Rb6 {[%clk 0:00:49.5]} 19... Nc4
{[%clk 0:01:51.8]} 20. Nd2 {[%clk 0:00:47.3]} 20... Rxf4 {[%clk 0:01:10.9]} 21.
Nxc4 {[%clk 0:00:47.1]} 21... Rf6 {[%clk 0:01:11]} 22. e4 {[%clk 0:00:46.4]}
22... Qc7 {[%clk 0:01:06.1]} 23. a5 {[%clk 0:00:46.1]} 23... Bd7 {[%clk
0:01:05.2]} 24. f4 {[%clk 0:00:40.1]} 24... Bb5 {[%clk 0:01:04.8]} 25. e5 {[%clk
0:00:33.3]} 25... dxe5 {[%clk 0:01:00.2]} 26. d6 {[%clk 0:00:33.4]} 26... Qd8
{[%clk 0:00:55.2]} 27. fxe5 {[%clk 0:00:33.8]} 27... Re6 {[%clk 0:00:53.4]} 28.
Bd5 {[%clk 0:00:32.7]} 28... Bxc4 {[%clk 0:00:38.7]} 29. Qxc4 {[%clk 0:00:32.3]}
29... Rxe5 {[%clk 0:00:39]} 30. Rf1 {[%clk 0:00:27.2]} 30... Qg5 {[%clk
0:00:28.7]} 31. Bxb7 {[%clk 0:00:21.9]} 31... Rf8 {[%clk 0:00:27.8]} 32. d7
{[%clk 0:00:19.8]} 32... Qe3+ {[%clk 0:00:25.4]} 33. Kh1 {[%clk 0:00:17.8]}
33... Qd2 {[%clk 0:00:25.4]} 34. Bf3 {[%clk 0:00:10.8]} 34... Qxd7 {[%clk
0:00:23.6]} 35. Rxa6 {[%clk 0:00:11.4]} 35... Rf5 {[%clk 0:00:21]} 36. Rb6
{[%clk 0:00:09.7]} 36... Qd2 {[%clk 0:00:20.6]} 37. Bg2 {[%clk 0:00:09.4]} 37...
Rxf1+ {[%clk 0:00:19.1]} 38. Qxf1 {[%clk 0:00:10.3]} 38... Qxa5 {[%clk
0:00:19.8]} 39. Rb7 {[%clk 0:00:09.2]} 39... Qd2 {[%clk 0:00:20.3]} 40. b3
{[%clk 0:00:07.2]} 40... Bd4 {[%clk 0:00:19.5]} 41. Bd5 {[%clk 0:00:06.2]} 41...
Qf2 {[%clk 0:00:18.8]} 42. Qxf2 {[%clk 0:00:04.8]} 42... Bxf2 {[%clk 0:00:19.7]}
43. Kg2 {[%clk 0:00:05.5]} 43... Bd4 {[%clk 0:00:20.2]} 44. Bc4 {[%clk
0:00:06.2]} 44... Kg7 {[%clk 0:00:20.9]} 45. Kf3 {[%clk 0:00:06.9]} 45... Kf6
{[%clk 0:00:21.4]} 46. h4 {[%clk 0:00:07.1]} 46... h5 {[%clk 0:00:21.5]} 47. Rd7
{[%clk 0:00:05.5]} 47... Be5 {[%clk 0:00:20.9]} 48. g4 {[%clk 0:00:05.8]} 48...
hxg4+ {[%clk 0:00:20.9]} 49. Kxg4 {[%clk 0:00:06.7]} 49... Kg7 {[%clk
0:00:21.7]} 50. h5 {[%clk 0:00:06.1]} 50... gxh5+ {[%clk 0:00:21.6]} 51. Kxh5
{[%clk 0:00:07]} 51... Kf6 {[%clk 0:00:22.2]} 52. Kg4 {[%clk 0:00:07.2]} 52...
Rg8+ {[%clk 0:00:22.6]} 53. Kf3 {[%clk 0:00:07.8]} 53... Rg7 {[%clk 0:00:23.2]}
54. Ke4 {[%clk 0:00:08.3]} 54... Bd4 {[%clk 0:00:22.9]} 55. Kd5 {[%clk
0:00:07.3]} 55... Kg6 {[%clk 0:00:22.4]} 56. Bd3+ {[%clk 0:00:05.9]} 56... Kg5
{[%clk 0:00:22.1]} 57. b4 {[%clk 0:00:04.4]} 57... cxb4 {[%clk 0:00:17.3]} 58.
Kxd4 {[%clk 0:00:04.9]} 58... b3 {[%clk 0:00:17.4]} 59. Kc3 {[%clk 0:00:05.1]}
59... Kh6 {[%clk 0:00:18.3]} 60. Rd6+ {[%clk 0:00:04.8]} 60... Kh5 {[%clk
0:00:18.3]} 61. Rd5+ {[%clk 0:00:05.2]} 61... Kg4 {[%clk 0:00:18.3]} 62. Kxb3
{[%clk 0:00:04.6]} 62... Rg5 {[%clk 0:00:18.9]} 63. Rd4+ {[%clk 0:00:02.8]}
63... Kg3 {[%clk 0:00:19.5]} 64. Kc3 {[%clk 0:00:03.7]} 64... f5 {[%clk
0:00:18.7]} 65. Rd5 {[%clk 0:00:04.2]} 65... f4 {[%clk 0:00:19.6]} 66. Rxg5+
{[%clk 0:00:03.8]} 66... Kf2 {[%clk 0:00:18]} 67. Rf5 {[%clk 0:00:04.7]} 67...
f3 {[%clk 0:00:18.9]} 68. Be4 {[%clk 0:00:05.2]} 68... Ke1 {[%clk 0:00:19.8]}
69. Bxf3 {[%clk 0:00:05.4]} 69... Kf2 {[%clk 0:00:20]} 70. Be4+ {[%clk 0:00:06]}
70... Ke1 {[%clk 0:00:20.9]} 71. Bd3 {[%clk 0:00:05.9]} 71... Kd1 {[%clk
0:00:21.2]} 72. Rf1# {[%clk 0:00:06.6]} 1-0

[Event "*** Titled Tuesday Blitz"]
[Site "Chess.com"]
[Date "2020.03.03"]
[Round "4"]
[White "Philosopherrr"]
[Black "GukeshDommaraju"]
[Result "1/2-1/2"]
[WhiteElo "2390"]
[BlackElo "2641"]
[TimeControl "180+1"]
[EndTime "9:44:23 PST"]
[Termination "Game drawn - insufficient material"]

1. e4 {[%clk 0:02:53.1]} 1... e5 {[%clk 0:02:59.8]} 2. Nf3 {[%clk 0:02:52.3]}
2... Nc6 {[%clk 0:02:59.8]} 3. Bb5 {[%clk 0:02:50.4]} 3... Nf6 {[%clk
0:02:58.5]} 4. O-O {[%clk 0:02:49.3]} 4... Nxe4 {[%clk 0:02:58.3]} 5. d4 {[%clk
0:02:45.7]} 5... Nd6 {[%clk 0:02:57.8]} 6. dxe5 {[%clk 0:02:45.1]} 6... Nxb5
{[%clk 0:02:51]} 7. a4 {[%clk 0:02:44.3]} 7... Nbd4 {[%clk 0:02:50.7]} 8. Nxd4
{[%clk 0:02:44]} 8... d5 {[%clk 0:02:50.5]} 9. exd6 {[%clk 0:02:36.3]} 9... Qxd6
{[%clk 0:02:47.4]} 10. Nb5 {[%clk 0:02:35.3]} 10... Qxd1 {[%clk 0:02:14.5]} 11.
Rxd1 {[%clk 0:02:33.9]} 11... Bd6 {[%clk 0:02:13.4]} 12. Nxd6+ {[%clk
0:02:32.4]} 12... cxd6 {[%clk 0:02:13.4]} 13. Bf4 {[%clk 0:02:32.9]} 13... Bf5
{[%clk 0:02:12.2]} 14. Na3 {[%clk 0:02:28.8]} 14... O-O {[%clk 0:02:04.4]} 15.
Bxd6 {[%clk 0:02:28]} 15... Rfe8 {[%clk 0:02:04.1]} 16. Re1 {[%clk 0:02:17.5]}
16... Nd4 {[%clk 0:01:58.6]} 17. c3 {[%clk 0:02:10.6]} 17... Ne2+ {[%clk
0:01:46.9]} 18. Kh1 {[%clk 0:02:05.9]} 18... Rad8 {[%clk 0:01:45]} 19. Bc5
{[%clk 0:02:01]} 19... Nf4 {[%clk 0:01:34.9]} 20. Rxe8+ {[%clk 0:01:54]} 20...
Rxe8 {[%clk 0:01:34.7]} 21. Bxa7 {[%clk 0:01:53.9]} 21... Nd3 {[%clk 0:01:21]}
22. Nc4 {[%clk 0:01:35.3]} 22... Re2 {[%clk 0:01:08.9]} 23. Rd1 {[%clk
0:01:22.1]} 23... Rxf2 {[%clk 0:01:00.3]} 24. Ne5 {[%clk 0:01:14.3]} 24... Be4
{[%clk 0:00:40.3]} 25. Rxd3 {[%clk 0:00:42.9]} 25... Rf1+ {[%clk 0:00:34.3]} 26.
Bg1 {[%clk 0:00:42.1]} 26... Bxd3 {[%clk 0:00:34.7]} 27. Nxd3 {[%clk 0:00:42.6]}
27... Rb1 {[%clk 0:00:30.5]} 28. a5 {[%clk 0:00:41]} 28... f5 {[%clk 0:00:28.4]}
29. g3 {[%clk 0:00:40.6]} 29... g5 {[%clk 0:00:21]} 30. Kg2 {[%clk 0:00:40.9]}
30... Rd1 {[%clk 0:00:19.7]} 31. Nc5 {[%clk 0:00:35.9]} 31... Rd2+ {[%clk
0:00:19.8]} 32. Kf3 {[%clk 0:00:36.1]} 32... Rxb2 {[%clk 0:00:19.3]} 33. Be3
{[%clk 0:00:33.1]} 33... h6 {[%clk 0:00:16.4]} 34. h4 {[%clk 0:00:32.5]} 34...
Rb5 {[%clk 0:00:11.7]} 35. hxg5 {[%clk 0:00:32.1]} 35... hxg5 {[%clk 0:00:12.6]}
36. Ne6 {[%clk 0:00:20.4]} 36... g4+ {[%clk 0:00:11.1]} 37. Kf4 {[%clk
0:00:19.8]} 37... Rxa5 {[%clk 0:00:08.6]} 38. Nd4 {[%clk 0:00:17.5]} 38... Rc5
{[%clk 0:00:06.7]} 39. Bd2 {[%clk 0:00:16.5]} 39... Rd5 {[%clk 0:00:05.2]} 40.
Be1 {[%clk 0:00:13.8]} 40... Kf7 {[%clk 0:00:04.6]} 41. Nxf5 {[%clk 0:00:13.9]}
41... Rd1 {[%clk 0:00:04.8]} 42. Bf2 {[%clk 0:00:13.1]} 42... Rf1 {[%clk
0:00:05.1]} 43. Ke3 {[%clk 0:00:13.4]} 43... Kg6 {[%clk 0:00:05.6]} 44. Nh4+
{[%clk 0:00:13]} 44... Kg5 {[%clk 0:00:05.4]} 45. Ke2 {[%clk 0:00:13.2]} 45...
Ra1 {[%clk 0:00:05.4]} 46. Be3+ {[%clk 0:00:13.4]} 46... Kf6 {[%clk 0:00:05.8]}
47. Ng2 {[%clk 0:00:13.4]} 47... Ra2+ {[%clk 0:00:05.7]} 48. Bd2 {[%clk
0:00:13.9]} 48... Kf5 {[%clk 0:00:06.1]} 49. Kd3 {[%clk 0:00:14.3]} 49... Ke6
{[%clk 0:00:04.9]} 50. Ne3 {[%clk 0:00:14.3]} 50... Ra4 {[%clk 0:00:04]} 51. c4
{[%clk 0:00:14.9]} 51... Ra3+ {[%clk 0:00:04.3]} 52. Bc3 {[%clk 0:00:15.4]}
52... Ra2 {[%clk 0:00:03.9]} 53. Nxg4 {[%clk 0:00:15.7]} 53... Rg2 {[%clk
0:00:04]} 54. Ne3 {[%clk 0:00:15.1]} 54... Rxg3 {[%clk 0:00:04.1]} 55. Ke4
{[%clk 0:00:15.2]} 55... Rg1 {[%clk 0:00:04.1]} 56. Bd4 {[%clk 0:00:15.7]} 56...
Rc1 {[%clk 0:00:04.1]} 57. Kd3 {[%clk 0:00:15.8]} 57... Rb1 {[%clk 0:00:03.9]}
58. Nc2 {[%clk 0:00:16]} 58... Rb3+ {[%clk 0:00:04.2]} 59. Bc3 {[%clk
0:00:15.5]} 59... Kd7 {[%clk 0:00:05.1]} 60. Nd4 {[%clk 0:00:15.4]} 60... Rb1
{[%clk 0:00:05.4]} 61. c5 {[%clk 0:00:15.5]} 61... Rh1 {[%clk 0:00:06.3]} 62.
Kc4 {[%clk 0:00:15.6]} 62... Kc8 {[%clk 0:00:06.7]} 63. Bb4 {[%clk 0:00:15.5]}
63... Rh4 {[%clk 0:00:07]} 64. Kd5 {[%clk 0:00:15.5]} 64... Rh3 {[%clk
0:00:07.2]} 65. Bd2 {[%clk 0:00:14.9]} 65... Rd3 {[%clk 0:00:06.9]} 66. Bf4
{[%clk 0:00:14.8]} 66... Rd1 {[%clk 0:00:07.2]} 67. Kc4 {[%clk 0:00:14.9]} 67...
Rf1 {[%clk 0:00:06.7]} 68. Bg5 {[%clk 0:00:14.4]} 68... Rg1 {[%clk 0:00:06.5]}
69. Be3 {[%clk 0:00:14.6]} 69... Rg3 {[%clk 0:00:06.2]} 70. Nf5 {[%clk
0:00:13.9]} 70... Rf3 {[%clk 0:00:06.3]} 71. Nd6+ {[%clk 0:00:14.1]} 71... Kc7
{[%clk 0:00:06.3]} 72. Bd4 {[%clk 0:00:14.6]} 72... Kc6 {[%clk 0:00:06.6]} 73.
Nb5 {[%clk 0:00:14.2]} 73... Rf4 {[%clk 0:00:06.4]} 74. Na7+ {[%clk 0:00:14.3]}
74... Kd7 {[%clk 0:00:06.7]} 75. Kd5 {[%clk 0:00:14.9]} 75... Rf5+ {[%clk
0:00:07.1]} 76. Be5 {[%clk 0:00:15.3]} 76... Rf1 {[%clk 0:00:07.3]} 77. Nb5
{[%clk 0:00:15.7]} 77... Rd1+ {[%clk 0:00:06.7]} 78. Bd4 {[%clk 0:00:16.6]}
78... Rd2 {[%clk 0:00:06.4]} 79. Nd6 {[%clk 0:00:17.1]} 79... Kc7 {[%clk
0:00:06.5]} 80. Kc4 {[%clk 0:00:17]} 80... Rd1 {[%clk 0:00:06.4]} 81. Be5 {[%clk
0:00:17]} 81... Kc6 {[%clk 0:00:06]} 82. Nb5 {[%clk 0:00:17.3]} 82... Rc1+
{[%clk 0:00:06.3]} 83. Bc3 {[%clk 0:00:17.5]} 83... Rh1 {[%clk 0:00:04.4]} 84.
Nd4+ {[%clk 0:00:17.5]} 84... Kd7 {[%clk 0:00:04.8]} 85. Ba5 {[%clk 0:00:17.8]}
85... Rh5 {[%clk 0:00:04.9]} 86. Bb6 {[%clk 0:00:17.1]} 86... Rh4 {[%clk
0:00:05.3]} 87. Ba5 {[%clk 0:00:17.2]} 87... Rh5 {[%clk 0:00:05.4]} 88. Bc3
{[%clk 0:00:16.5]} 88... Rh4 {[%clk 0:00:05.7]} 89. Kd5 {[%clk 0:00:16.6]} 89...
Rh3 {[%clk 0:00:05.6]} 90. Bb4 {[%clk 0:00:16.4]} 90... Rh1 {[%clk 0:00:05.9]}
91. c6+ {[%clk 0:00:15.8]} 91... bxc6+ {[%clk 0:00:06.4]} 92. Nxc6 {[%clk
0:00:16.7]} 92... Rb1 {[%clk 0:00:06]} 93. Nd4 {[%clk 0:00:17.6]} 93... Rxb4
{[%clk 0:00:05.1]} 94. Kc5 {[%clk 0:00:18.5]} 94... Rb1 {[%clk 0:00:04.4]} 95.
Nb5 {[%clk 0:00:18.4]} 95... Rd1 {[%clk 0:00:05.3]} 96. Nc3 {[%clk 0:00:18]}
96... Ke6 {[%clk 0:00:05.6]} 97. Nxd1 {[%clk 0:00:17.3]} 1/2-1/2

[Event "*** Titled Tuesday Blitz"]
[Site "Chess.com"]
[Date "2020.03.03"]
[Round "5"]
[White "LawrenceTrent"]
[Black "VitaliyBernadskiy"]
[Result "0-1"]
[WhiteElo "2595"]
[BlackElo "2795"]
[TimeControl "180+1"]
[EndTime "9:46:27 PST"]
[Termination "VitaliyBernadskiy won by resignation"]

1. d4 {[%clk 0:03:00.9]} 1... Nf6 {[%clk 0:02:59.5]} 2. Nc3 {[%clk 0:03:01.5]}
2... d5 {[%clk 0:02:58.2]} 3. Bf4 {[%clk 0:03:02.2]} 3... e6 {[%clk 0:02:58.7]}
4. e3 {[%clk 0:03:02.2]} 4... Bb4 {[%clk 0:02:58.4]} 5. g4 {[%clk 0:03:01.9]}
5... O-O {[%clk 0:02:50.9]} 6. g5 {[%clk 0:02:58.9]} 6... Ne4 {[%clk 0:02:50.8]}
7. Qd3 {[%clk 0:02:42.4]} 7... b6 {[%clk 0:02:46.8]} 8. Ne2 {[%clk 0:02:17.2]}
8... Ba6 {[%clk 0:02:45.2]} 9. Qd1 {[%clk 0:02:17.4]} 9... Bxe2 {[%clk
0:02:37.3]} 10. Bxe2 {[%clk 0:02:12.3]} 10... Nxc3 {[%clk 0:02:37]} 11. Qd2
{[%clk 0:02:12.5]} 11... Nxe2 {[%clk 0:02:35.5]} 0-1

[Event "*** Titled Tuesday Blitz"]
[Site "Chess.com"]
[Date "2020.03.03"]
[Round "5"]
[White "Terao90"]
[Black "ZEN-22"]
[Result "1-0"]
[WhiteElo "2412"]
[BlackElo "2221"]
[TimeControl "180+1"]
[EndTime "9:46:45 PST"]
[Termination "Terao90 won by resignation"]

1. e4 {[%clk 0:03:00.9]} 1... b6 {[%clk 0:02:59.2]} 2. d4 {[%clk 0:03:00.9]}
2... Bb7 {[%clk 0:03:00.1]} 3. Nc3 {[%clk 0:03:01.2]} 3... e6 {[%clk 0:03:00.4]}
4. a3 {[%clk 0:03:01.2]} 4... Nf6 {[%clk 0:02:59.9]} 5. Bd3 {[%clk 0:03:01.3]}
5... d5 {[%clk 0:03:00.1]} 6. exd5 {[%clk 0:03:00.5]} 6... Nxd5 {[%clk
0:03:00.1]} 7. Nxd5 {[%clk 0:02:59.8]} 7... Qxd5 {[%clk 0:02:59.1]} 8. Nf3
{[%clk 0:02:59.9]} 8... Bd6 {[%clk 0:02:58.7]} 9. O-O {[%clk 0:02:57.5]} 9...
Qh5 {[%clk 0:02:58.1]} 10. h3 {[%clk 0:02:55.5]} 10... Bxf3 {[%clk 0:02:56]} 11.
Qxf3 {[%clk 0:02:56.4]} 11... Qxf3 {[%clk 0:02:55.7]} 12. gxf3 {[%clk
0:02:57.3]} 12... c5 {[%clk 0:02:53]} 13. Be4 {[%clk 0:02:56.3]} 13... cxd4
{[%clk 0:02:51.3]} 14. Bxa8 {[%clk 0:02:56]} 14... Ke7 {[%clk 0:02:47.5]} 15.
Be4 {[%clk 0:02:54.6]} 15... f5 {[%clk 0:02:47]} 16. Bd3 {[%clk 0:02:54.6]}
16... Nd7 {[%clk 0:02:46.3]} 17. f4 {[%clk 0:02:54.8]} 17... Kf6 {[%clk
0:02:46.4]} 18. Re1 {[%clk 0:02:54.6]} 18... h6 {[%clk 0:02:46.3]} 19. Bd2
{[%clk 0:02:54.6]} 19... g5 {[%clk 0:02:44.4]} 20. Bc4 {[%clk 0:02:54.1]} 20...
Re8 {[%clk 0:02:43.3]} 21. Bb5 {[%clk 0:02:53.8]} 21... Re7 {[%clk 0:02:42.1]}
22. Bxd7 {[%clk 0:02:53.6]} 22... Rxd7 {[%clk 0:02:42.7]} 23. fxg5+ {[%clk
0:02:54.5]} 23... hxg5 {[%clk 0:02:41.9]} 24. c3 {[%clk 0:02:52.8]} 24... Bc5
{[%clk 0:02:38.3]} 25. cxd4 {[%clk 0:02:51.3]} 25... Bxd4 {[%clk 0:02:38.2]} 26.
Bc3 {[%clk 0:02:52]} 26... Bxc3 {[%clk 0:02:37.3]} 27. bxc3 {[%clk 0:02:52.5]}
27... Rd3 {[%clk 0:02:37.7]} 28. Rad1 {[%clk 0:02:52.2]} 28... Rxc3 {[%clk
0:02:37.4]} 29. Rd6 {[%clk 0:02:52.3]} 29... Rxh3 {[%clk 0:02:36.7]} 30. Rdxe6+
{[%clk 0:02:52]} 30... Kf7 {[%clk 0:02:37.6]} 31. Re7+ {[%clk 0:02:51.8]} 31...
Kf8 {[%clk 0:02:35.8]} 32. Rxa7 {[%clk 0:02:51.5]} 32... Rb3 {[%clk 0:02:34.6]}
33. Rc1 {[%clk 0:02:49.5]} 33... Re3 {[%clk 0:02:31.8]} 34. fxe3 {[%clk
0:02:48.8]} 1-0

[Event "*** Titled Tuesday Blitz"]
[Site "Chess.com"]
[Date "2020.03.03"]
[Round "5"]
[White "lelya96"]
[Black "kingofthenil"]
[Result "0-1"]
[WhiteElo "2298"]
[BlackElo "2569"]
[TimeControl "180+1"]
[EndTime "9:46:48 PST"]
[Termination "kingofthenil won by resignation"]

1. e4 {[%clk 0:03:00.9]} 1... c5 {[%clk 0:02:58.6]} 2. Nf3 {[%clk 0:03:00.5]}
2... a6 {[%clk 0:02:59.5]} 3. d4 {[%clk 0:03:00.6]} 3... cxd4 {[%clk 0:03:00.4]}
4. Nxd4 {[%clk 0:03:01.2]} 4... Nf6 {[%clk 0:03:01.3]} 5. Bd3 {[%clk 0:03:00.8]}
5... e5 {[%clk 0:03:02.2]} 6. Nb3 {[%clk 0:02:59.1]} 6... Nc6 {[%clk 0:03:01.3]}
7. O-O {[%clk 0:02:59]} 7... Be7 {[%clk 0:03:00.8]} 8. Be3 {[%clk 0:02:57.8]}
8... O-O {[%clk 0:03:01.7]} 9. Kh1 {[%clk 0:02:57.6]} 9... d5 {[%clk 0:03:01.7]}
10. N1d2 {[%clk 0:02:57.7]} 10... d4 {[%clk 0:03:00.5]} 11. Bg5 {[%clk
0:02:57.9]} 11... h6 {[%clk 0:02:59.8]} 12. Bxf6 {[%clk 0:02:57.5]} 12... Bxf6
{[%clk 0:03:00.7]} 13. c3 {[%clk 0:02:56.9]} 13... dxc3 {[%clk 0:02:59.8]} 14.
Nf3 {[%clk 0:02:52.1]} 14... cxb2 {[%clk 0:02:58.7]} 15. Rb1 {[%clk 0:02:52.4]}
15... Qe7 {[%clk 0:02:46.9]} 16. Qe2 {[%clk 0:02:51.5]} 16... Rd8 {[%clk
0:02:47.8]} 17. Bc4 {[%clk 0:02:51.6]} 17... Bg4 {[%clk 0:02:41.5]} 18. Rxb2
{[%clk 0:02:50.6]} 18... Na7 {[%clk 0:02:40.1]} 19. Bd5 {[%clk 0:02:50]} 19...
Nc6 {[%clk 0:02:39.5]} 20. h3 {[%clk 0:02:47.3]} 20... Bh5 {[%clk 0:02:38.4]}
21. Qe3 {[%clk 0:02:40.3]} 21... Rac8 {[%clk 0:02:37.9]} 22. Nc5 {[%clk
0:02:38.2]} 22... Bxf3 {[%clk 0:02:36.8]} 23. gxf3 {[%clk 0:02:37.3]} 23... Bg5
{[%clk 0:02:36.3]} 24. Qa3 {[%clk 0:02:34.6]} 24... Nd4 {[%clk 0:02:31.9]} 25.
Rc1 {[%clk 0:02:28.3]} 25... Bxc1 {[%clk 0:02:30.4]} 0-1

[Event "*** Titled Tuesday Blitz"]
[Site "Chess.com"]
[Date "2020.03.03"]
[Round "5"]
[White "Vyacheslav_N"]
[Black "Pultis"]
[Result "0-1"]
[WhiteElo "2564"]
[BlackElo "2784"]
[TimeControl "180+1"]
[EndTime "9:47:47 PST"]
[Termination "Pultis won by resignation"]

1. e4 {[%clk 0:03:00.9]} 1... c6 {[%clk 0:02:56.3]} 2. d4 {[%clk 0:02:59.3]}
2... d5 {[%clk 0:02:56.5]} 3. Nd2 {[%clk 0:03:00.2]} 3... dxe4 {[%clk
0:02:56.6]} 4. Nxe4 {[%clk 0:03:01.1]} 4... Bf5 {[%clk 0:02:56.4]} 5. Ng3 {[%clk
0:03:01.4]} 5... Bg6 {[%clk 0:02:57]} 6. h4 {[%clk 0:03:02.1]} 6... h6 {[%clk
0:02:57.1]} 7. Nf3 {[%clk 0:03:02.5]} 7... Nd7 {[%clk 0:02:57.5]} 8. h5 {[%clk
0:03:03.1]} 8... Bh7 {[%clk 0:02:57.4]} 9. Bd3 {[%clk 0:03:04]} 9... Bxd3 {[%clk
0:02:57.9]} 10. Qxd3 {[%clk 0:03:04.9]} 10... e6 {[%clk 0:02:57.5]} 11. Bf4
{[%clk 0:03:05.5]} 11... Ngf6 {[%clk 0:02:56.2]} 12. O-O-O {[%clk 0:03:05.4]}
12... Nd5 {[%clk 0:02:52.4]} 13. Bd2 {[%clk 0:02:54.4]} 13... b5 {[%clk
0:02:52.8]} 14. Ne4 {[%clk 0:02:43.5]} 14... a5 {[%clk 0:02:48.7]} 15. g4 {[%clk
0:02:43.3]} 15... a4 {[%clk 0:02:43]} 16. Ne5 {[%clk 0:02:43.5]} 16... Nxe5
{[%clk 0:02:39.8]} 17. dxe5 {[%clk 0:02:44.4]} 17... a3 {[%clk 0:02:40.7]} 18.
b3 {[%clk 0:02:43.9]} 18... Qc7 {[%clk 0:02:20.9]} 19. Nd6+ {[%clk 0:02:18.8]}
19... Bxd6 {[%clk 0:02:17.5]} 20. exd6 {[%clk 0:02:19.7]} 20... Qxd6 {[%clk
0:02:18.4]} 21. c4 {[%clk 0:02:19.4]} 21... Qe5 {[%clk 0:02:16.5]} 22. Qc2
{[%clk 0:02:13.2]} 22... bxc4 {[%clk 0:02:10]} 23. bxc4 {[%clk 0:02:14.1]} 23...
Rb8 {[%clk 0:02:04.9]} 0-1

[Event "*** Titled Tuesday Blitz"]
[Site "Chess.com"]
[Date "2020.03.03"]
[Round "5"]
[White "adricalderon8"]
[Black "FairChess_on_YouTube"]
[Result "0-1"]
[WhiteElo "2413"]
[BlackElo "3040"]
[TimeControl "180+1"]
[EndTime "9:48:42 PST"]
[Termination "FairChess_on_YouTube won by resignation"]

1. e4 {[%clk 0:03:00.9]} 1... c5 {[%clk 0:02:58.4]} 2. Nf3 {[%clk 0:03:01.1]}
2... e6 {[%clk 0:02:58.8]} 3. d4 {[%clk 0:03:01.2]} 3... cxd4 {[%clk 0:02:59.7]}
4. Nxd4 {[%clk 0:03:01.9]} 4... Nc6 {[%clk 0:03:00.3]} 5. Nc3 {[%clk 0:03:01.6]}
5... Qc7 {[%clk 0:03:00.7]} 6. Be3 {[%clk 0:03:01]} 6... a6 {[%clk 0:03:00.8]}
7. Qf3 {[%clk 0:03:00.2]} 7... Nf6 {[%clk 0:03:00.9]} 8. O-O-O {[%clk
0:03:00.3]} 8... Rb8 {[%clk 0:03:01.2]} 9. g4 {[%clk 0:02:56.3]} 9... Ne5 {[%clk
0:02:50.8]} 10. Qg3 {[%clk 0:02:56.6]} 10... Nfxg4 {[%clk 0:02:35.6]} 11. Bf4
{[%clk 0:02:47.7]} 11... d6 {[%clk 0:02:34.3]} 12. f3 {[%clk 0:02:44.2]} 12...
Nf6 {[%clk 0:02:33.9]} 13. Be3 {[%clk 0:02:44.5]} 13... b5 {[%clk 0:02:31.7]}
14. Kb1 {[%clk 0:02:31]} 14... b4 {[%clk 0:02:28]} 15. Nce2 {[%clk 0:02:30.2]}
15... g6 {[%clk 0:02:26.4]} 16. Nc1 {[%clk 0:02:15.5]} 16... Bg7 {[%clk
0:02:25.1]} 17. f4 {[%clk 0:02:15.9]} 17... Nxe4 {[%clk 0:02:17.1]} 18. Qe1
{[%clk 0:01:52.2]} 18... Nc4 {[%clk 0:02:11.5]} 19. Bxc4 {[%clk 0:01:46]} 19...
Qxc4 {[%clk 0:02:12.4]} 20. h4 {[%clk 0:01:42.4]} 20... h5 {[%clk 0:02:10.8]}
21. Rg1 {[%clk 0:01:40.5]} 21... O-O {[%clk 0:02:09.5]} 22. f5 {[%clk
0:01:35.8]} 22... exf5 {[%clk 0:02:08.5]} 23. Nf3 {[%clk 0:01:27.8]} 23... Re8
{[%clk 0:02:05.9]} 24. Nd3 {[%clk 0:01:13.7]} 24... Be6 {[%clk 0:02:03.9]} 25.
b3 {[%clk 0:01:13.3]} 25... Nc3+ {[%clk 0:02:02.9]} 26. Kb2 {[%clk 0:01:10.4]}
26... Nxd1+ {[%clk 0:02:02.2]} 27. Kb1 {[%clk 0:01:10.2]} 0-1

[Event "*** Titled Tuesday Blitz"]
[Site "Chess.com"]
[Date "2020.03.03"]
[Round "5"]
[White "NiranjanNavalgund"]
[Black "norwaytoadog"]
[Result "1-0"]
[WhiteElo "2416"]
[BlackElo "2244"]
[TimeControl "180+1"]
[EndTime "9:49:16 PST"]
[Termination "NiranjanNavalgund won by resignation"]

1. d4 {[%clk 0:03:00.9]} 1... Nf6 {[%clk 0:02:59.2]} 2. g4 {[%clk 0:03:01.8]}
2... Nxg4 {[%clk 0:02:55.5]} 3. e4 {[%clk 0:03:01.9]} 3... d6 {[%clk 0:02:45.7]}
4. Nc3 {[%clk 0:03:01.8]} 4... e5 {[%clk 0:02:35.8]} 5. Nf3 {[%clk 0:03:00.4]}
5... g6 {[%clk 0:02:27]} 6. Rg1 {[%clk 0:03:00.4]} 6... Nc6 {[%clk 0:02:21.8]}
7. d5 {[%clk 0:02:59]} 7... Ne7 {[%clk 0:02:10.4]} 8. Bb5+ {[%clk 0:02:59.5]}
8... c6 {[%clk 0:02:05.9]} 9. dxc6 {[%clk 0:02:59.2]} 9... bxc6 {[%clk 0:02:06]}
10. Bc4 {[%clk 0:02:59.4]} 10... Bg7 {[%clk 0:02:04]} 11. Ng5 {[%clk 0:02:58.3]}
11... Nh6 {[%clk 0:01:59.7]} 12. Be3 {[%clk 0:02:54.4]} 12... O-O {[%clk
0:01:51.3]} 13. Qf3 {[%clk 0:02:53.4]} 13... Kh8 {[%clk 0:01:40.8]} 14. O-O-O
{[%clk 0:02:50]} 14... f6 {[%clk 0:01:30.8]} 15. Ne6 {[%clk 0:02:47.5]} 15...
Bxe6 {[%clk 0:01:29.5]} 16. Bxe6 {[%clk 0:02:48.4]} 16... f5 {[%clk 0:01:19.4]}
17. Qh3 {[%clk 0:02:47.4]} 17... f4 {[%clk 0:01:15]} 18. Bc5 {[%clk 0:02:46.4]}
18... d5 {[%clk 0:00:47.7]} 19. exd5 {[%clk 0:02:45.5]} 19... cxd5 {[%clk
0:00:46.4]} 20. Nxd5 {[%clk 0:02:45.8]} 20... Nef5 {[%clk 0:00:36.4]} 21. Bxf8
{[%clk 0:02:43.7]} 21... Qxf8 {[%clk 0:00:35.4]} 22. Nc7 {[%clk 0:02:43.8]}
22... Rb8 {[%clk 0:00:33]} 23. Bxf5 {[%clk 0:02:43.8]} 23... Nxf5 {[%clk
0:00:30.8]} 24. Ne6 {[%clk 0:02:44.3]} 24... Qb4 {[%clk 0:00:28.8]} 25. Qb3
{[%clk 0:02:44.4]} 25... Nd4 {[%clk 0:00:25.7]} 26. Qxb4 {[%clk 0:02:43.9]}
26... Rxb4 {[%clk 0:00:25.6]} 27. c3 {[%clk 0:02:44.3]} 27... Ne2+ {[%clk
0:00:24.6]} 28. Kc2 {[%clk 0:02:44.3]} 28... Nxg1 {[%clk 0:00:22.9]} 29. Rd8+
{[%clk 0:02:42.3]} 1-0